bitfinex/quotes_ETHUSD_20260130
["timestamp","ask_amount","ask_price","bid_price","bid_amount"]
[1769805355378,0.2335703,2686.3,2684.1,8.44043703]
[1769805355679,0.8814,2686.2,2684.2,0.9313762]
[1769805355871,0.93061346,2686.4,2684.2,9.37071323]
[1769805356100,0.8814,2686.3,2684.2,9.37071323]
[1769805357042,0.1024,2686.2,2684.2,9.37071323]
[1769805357246,0.1024,2686.2,2684.2,11.05299551]
[1769805357742,0.93071739,2686.1,2684.2,2.61365848]
[1769805357939,0.93071739,2686.1,2684.2,0.9313762]
[1769805358912,0.779,2686.0,2684.2,9.37071323]
[1769805359314,0.93071739,2686.1,2684.2,9.37071323]
[1769805359877,8.06950256,2686.0,2681.8,5.0]
[1769805360146,0.1024,2683.8,2682.3,0.0003]
[1769805360313,0.779,2683.7,2682.3,0.0003]
[1769805360515,0.1024,2683.5,2682.3,0.0003]
[1769805360712,0.1024,2683.3,2682.3,0.0003]
[1769805360937,1.98504011,2683.3,2681.6,0.0003]
[1769805361139,0.1024,2682.9,2680.6,0.0011]
[1769805361353,0.1024,2682.5,2680.4,1e-08]
[1769805361649,0.93200119,2682.4,2681.1,9.37179012]
[1769805361941,0.93175804,2683.2,2681.2,9.74949995]
[1769805362714,3.72513612,2684.5,2681.4,8.43933703]
[1769805362919,0.93151501,2683.8,2681.4,8.43933703]
[1769805363722,0.93151501,2683.8,2681.5,9.37165103]
[1769805363924,0.1024,2683.6,2681.5,8.43933703]
[1769805364129,0.1024,2683.6,2681.6,0.93716667]
[1769805364518,0.1024,2683.4,2681.2,1.31016292]
[1769805364713,0.1024,2683.2,2680.8,9.37187481]
[1769805365042,0.2335703,2683.1,2680.8,8.43933703]
[1769805365211,0.1024,2682.8,2680.9,0.9324924]
[1769805365412,0.78,2682.7,2680.9,0.93251317]
[1769805365647,0.78,2682.7,2681.0,1.86966767]
[1769805365842,0.9319317,2682.6,2681.0,1.86966299]
[1769805366251,0.9319317,2682.6,2681.6,0.0011]
[1769805367840,3.72772683,2682.8,2681.6,0.0011]
[1769805368035,0.78,2682.7,2681.6,0.0011]
[1769805368357,3.72772683,2682.9,2681.6,0.0011]
[1769805368657,0.78,2682.8,2681.6,0.0011]
[1769805368827,0.1024,2682.3,2680.4,1e-08]
[1769805369029,13.0891317,2682.1,2680.4,1e-08]
[1769805369233,0.1024,2681.3,2678.4,11.91086058]
[1769805369458,0.3359703,2681.1,2679.0,0.93316409]
[1769805369769,0.1024,2680.7,2678.5,0.93335822]
[1769805369973,0.78,2680.6,2678.5,0.93335822]
[1769805370455,0.93255744,2680.8,2678.5,12.8442188]
[1769805371025,0.1024,2680.7,2678.5,12.8442188]
[1769805371361,0.93255744,2680.8,2678.5,12.8442188]
[1769805371559,0.93255744,2680.8,2678.7,11.91086058]
[1769805371854,0.93255744,2680.8,2678.8,0.93325369]
[1769805372054,0.1024,2680.7,2678.7,0.93327405]
[1769805372449,0.781,2680.6,2678.7,0.93327405]
[1769805372626,0.781,2680.6,2678.8,0.46664282]
[1769805373023,0.2335703,2680.4,2678.8,0.46664282]
[1769805373258,0.781,2680.5,2678.7,0.93327912]
[1769805373436,3.72901381,2681.7,2678.7,0.93327912]
[1769805373437,3.72901381,2681.7,2678.7,12.8441397]
[1769805373633,1.71327923,2681.6,2678.7,12.8441397]
[1769805374026,0.781,2681.5,2678.7,12.8441397]
[1769805374629,0.781,2681.4,2678.7,12.8441397]
[1769805374825,0.781,2681.4,2678.9,11.91086058]
[1769805375055,0.781,2681.5,2678.9,11.91086058]
[1769805375662,12.8555614,2681.2,2678.8,1.65772938]
[1769805375867,0.93248787,2681.0,2678.5,0.93335822]
[1769805376230,0.2335703,2680.8,2678.5,0.93335822]
[1769805376546,0.2335703,2680.6,2678.5,0.93335822]
[1769805376747,0.93248787,2681.0,2678.5,12.8442188]
[1769805377958,3.72995151,2681.4,2678.5,12.8442188]
[1769805378132,0.46622655,2681.3,2678.7,11.91086058]
[1769805378534,0.46622655,2681.3,2678.8,0.1024]
[1769805378735,0.932314,2681.5,2678.9,11.91086058]
[1769805379271,0.1024,2680.8,2678.7,0.0011]
[1769805379444,12.7531614,2680.9,2678.7,0.0011]
[1769805379445,0.1024,2680.6,2678.7,0.0011]
[1769805379644,0.781,2680.5,2678.7,0.0011]
[1769805379876,0.93269661,2680.4,2678.7,0.0011]
[1769805380088,0.5444483,2680.3,2678.7,0.0011]
[1769805380383,12.7531614,2679.0,2676.3,0.14526463]
[1769805380583,0.19416268,2677.0,2676.3,0.14526463]
[1769805380873,0.79329949,2678.2,2676.4,0.93409056]
[1769805380874,0.1938827,2678.2,2676.4,0.93409056]
[1769805381168,0.1938827,2678.2,2676.5,0.46704696]
[1769805381460,0.1938827,2678.2,2676.4,11.91086058]
[1769805381693,0.1024,2679.5,2676.4,11.91086058]
[1769805381694,2.34174563,2679.7,2676.8,11.91086058]
[1769805381971,2.34174563,2679.7,2677.8,11.91086058]
[1769805382265,2.34174563,2679.7,2678.0,11.91086058]
[1769805382461,3.27469628,2679.7,2678.0,11.91086058]
[1769805382665,2.34174563,2679.7,2678.1,13.18004664]
[1769805382876,0.93248787,2681.0,2678.2,11.91086058]
[1769805383244,0.93248787,2681.0,2678.2,11.41136058]
[1769805383841,3.72982277,2681.1,2678.4,11.91086058]
[1769805385352,0.9322097,2681.8,2678.8,11.91086058]
[1769805385553,0.49328236,2681.7,2679.0,11.91086058]
[1769805385870,0.2335703,2681.4,2679.1,0.93314919]
[1769805386365,0.932314,2681.5,2678.5,0.781]
[1769805386366,0.2335703,2681.0,2678.5,0.781]
[1769805386570,1.2996261,2680.9,2678.5,0.781]
[1769805386864,0.781,2680.8,2678.3,11.91086058]
[1769805387167,0.2335703,2680.6,2678.4,1.56446499]
[1769805387355,0.2335703,2680.2,2678.3,0.93339664]
[1769805387542,0.5186261,2680.5,2678.4,0.933381]
[1769805387741,0.781,2680.8,2678.7,3.73309889]
[1769805387742,0.1024,2680.4,2678.7,3.73309889]
[1769805388052,1.71373141,2680.3,2678.0,12.84439306]
[1769805388251,0.93273141,2680.3,2678.0,12.84439306]
[1769805388455,0.93273141,2680.3,2678.2,11.91086058]
[1769805388638,0.93273141,2680.3,2678.4,11.91086058]
[1769805388838,0.93259223,2680.7,2678.4,11.91086058]
[1769805389541,0.93257914,2680.8,2678.4,11.91086058]
[1769805390062,0.93238354,2681.3,2678.6,11.91086058]
[1769805390261,0.47642775,2681.2,2678.7,13.19528246]
[1769805390461,0.7521964,2681.1,2678.7,13.19528246]
[1769805390635,0.7521964,2681.1,2678.0,11.91086058]
[1769805390636,7.378124,2681.0,2678.0,11.91086058]
[1769805390834,0.2335703,2680.6,2678.1,5.39184162]
[1769805391033,0.2335703,2680.6,2678.2,0.93344585]
[1769805391236,13.3741875,2680.5,2678.3,0.93342264]
[1769805391436,0.2335703,2680.3,2678.4,0.9333808]
[1769805391637,0.2335703,2680.3,2678.5,0.46670707]
[1769805391837,0.001,2680.5,2678.5,0.46670707]
[1769805392137,0.2335703,2680.4,2678.5,1.40006067]
[1769805392465,0.5186261,2680.3,2678.5,1.40006067]
[1769805392766,0.001,2680.5,2678.5,1.40006067]
[1769805392934,0.5186261,2680.4,2678.6,0.51335745]
[1769805393140,0.001,2680.5,2678.6,0.51335745]
[1769805393570,0.7521964,2680.4,2678.6,0.51335745]
[1769805393868,0.781,2680.3,2678.5,0.93334894]
[1769805394236,0.781,2680.3,2678.0,0.93353248]
[1769805394237,0.2335703,2680.1,2678.0,0.93353248]
[1769805394547,0.2335703,2679.9,2677.9,0.93356381]
[1769805394847,0.3359703,2679.7,2677.6,0.9336707]
[1769805395161,0.781,2679.6,2677.9,0.93356028]
[1769805395367,0.781,2679.6,2678.0,0.46678297]
[1769805395547,1.2996261,2679.6,2677.9,0.93356478]
[1769805395743,0.5186261,2679.5,2677.9,0.93356478]
[1769805395948,0.1024,2679.9,2677.9,0.93356478]
[1769805396171,0.93290544,2679.8,2677.7,11.91086058]
[1769805398068,3.92334171,2681.3,2677.7,11.91086058]
[1769805398069,0.93367805,2680.5,2677.7,11.91086058]
[1769805398273,0.001,2680.5,2677.9,13.44751967]
[1769805398581,0.001,2680.5,2678.1,13.44751967]
[1769805398885,0.45286913,2680.4,2678.1,13.44751967]
[1769805399048,0.5186261,2680.4,2678.2,1.42295197]
[1769805399249,0.5186261,2680.3,2678.2,1.42295197]
[1769805399449,0.001,2680.5,2678.2,14.87047164]
[1769805400149,0.001,2680.5,2678.4,13.44751967]
[1769805402179,0.001,2680.5,2678.5,0.93335822]
[1769805402379,0.001,2680.5,2678.6,15.25895075]
[1769805403251,3.72914938,2681.6,2678.7,13.44751967]
[1769805403457,0.5186261,2681.5,2678.7,13.44751967]
[1769805403861,0.5186261,2681.5,2678.9,13.44751967]
[1769805404063,3.72914938,2681.6,2678.9,13.44751967]
[1769805404268,0.2717751,2681.9,2678.9,13.44751967]
[1769805404269,1.20397925,2681.9,2679.3,13.44751967]
[1769805404585,0.93220415,2681.9,2679.3,13.44751967]
[1769805406167,0.93220415,2681.9,2679.4,0.93304471]
[1769805407089,0.93220415,2681.9,2679.5,14.22851967]
[1769805408189,0.93220415,2681.9,2679.6,0.93297507]
[1769805408394,0.54418883,2681.8,2679.7,0.54458754]
[1769805408758,0.54418883,2681.8,2679.7,13.99210721]
[1769805409395,0.54418883,2681.8,2679.6,0.93297507]
[1769805409588,14.37703901,2681.7,2679.5,1.71399449]
[1769805409788,13.97641988,2681.7,2679.5,1.71399449]
[1769805409989,14.10759018,2681.6,2678.9,3.73283634]
[1769805410164,13.87401988,2681.4,2679.3,0.93306838]
[1769805410366,0.2335703,2681.2,2678.8,3.73296909]
[1769805410566,14.10759018,2681.2,2678.7,0.93328853]
[1769805410774,13.87401988,2681.0,2678.7,0.93328853]
[1769805411098,0.781,2680.9,2678.7,0.93328853]
[1769805411257,14.10759018,2680.7,2678.6,0.93329868]
[1769805411460,13.87401988,2680.7,2678.6,0.93329868]
[1769805411910,14.67353152,2680.6,2678.6,0.93329868]
[1769805412070,14.67353152,2680.6,2677.9,0.0011]
[1769805412071,14.10759018,2680.2,2677.9,0.0011]
[1769805412269,0.93287062,2679.9,2677.9,0.0011]
[1769805413297,14.10759018,2679.6,2677.9,0.0011]
[1769805413477,0.2335703,2679.8,2677.9,0.0011]
[1769805413671,0.781,2679.7,2677.9,0.0011]
[1769805413871,0.2335703,2679.6,2677.9,0.0011]
[1769805414186,14.10759018,2679.4,2677.1,0.0011]
[1769805414369,0.1024,2679.0,2677.1,0.0011]
[1769805414572,13.97641988,2679.0,2677.1,0.0011]
[1769805415200,0.1024,2678.7,2677.1,0.0011]
[1769805415579,0.781,2678.6,2677.1,0.0011]
[1769805415888,15.26033093,2679.1,2677.1,0.0011]
[1769805416089,3.15718215,2679.0,2677.1,0.0011]
[1769805416313,0.93321885,2678.9,2677.1,0.0011]
[1769805416817,14.10679018,2678.7,2677.1,0.0011]
[1769805417017,14.55995204,2678.7,2677.1,0.0011]
[1769805417353,14.10679018,2678.7,2675.8,0.0011]
[1769805417623,14.10679018,2678.7,2674.3,1.801175]
[1769805417624,30.0,2677.1,2672.9,3.928]
[1769805417826,18.911968,2676.0,2673.1,0.2065149]
[1769805418027,2.641382,2675.8,2673.2,3.74079579]
[1769805418327,0.93440478,2675.5,2673.1,0.95274096]
[1769805418617,13.87401988,2674.9,2672.5,0.93543093]
[1769805418825,13.87401988,2674.7,2672.4,0.93546198]
[1769805418983,0.1024,2674.2,2671.8,3.74266544]
[1769805419184,0.1024,2674.2,2670.3,5.80791126]
[1769805419185,0.1024,2674.0,2671.5,3.74316264]
[1769805419429,2.20262195,2674.1,2666.5,0.00261]
[1769805419430,17.08013255,2672.5,2669.8,0.04891062]
[1769805419663,0.1024,2672.2,2668.9,13.44751967]
[1769805419837,0.1024,2672.2,2669.1,3.74656436]
[1769805419838,3.3565728,2672.1,2669.1,3.74656436]
[1769805420023,3.3565728,2672.1,2669.0,13.44751967]
[1769805420225,3.2541728,2672.1,2669.1,0.93664525]
[1769805420480,0.2335703,2671.8,2669.7,13.44751967]
[1769805420771,0.2335703,2672.7,2669.9,12.89751967]
[1769805420931,0.2319703,2672.7,2670.2,15.2623895]
[1769805421263,0.2319703,2672.7,2670.0,0.1024]
[1769805421264,1.04687357,2672.6,2670.4,13.44751967]
[1769805421491,1.04687357,2672.6,2670.0,0.1024]
[1769805421492,0.93506882,2673.6,2670.6,13.44751967]
[1769805421630,0.93506882,2673.6,2670.9,13.54991967]
[1769805421971,0.93506882,2673.6,2671.1,13.44751967]
[1769805422462,0.0632617,2673.2,2670.6,0.93611922]
[1769805422662,0.1024,2673.0,2670.6,0.93611922]
[1769805422869,0.1656617,2673.0,2670.5,1.34475197]
[1769805423080,0.0632617,2672.7,2670.4,13.44751967]
[1769805423358,0.1024,2672.5,2669.7,13.44751967]
[1769805423561,0.0632617,2672.4,2669.7,13.44751967]
[1769805423863,0.1024,2672.1,2670.1,0.93629042]
[1769805424063,0.2335703,2672.0,2670.2,0.9362577]
[1769805424371,0.2335703,2671.8,2669.8,0.93639973]
[1769805424539,0.19423171,2670.2,2669.7,0.93643432]
[1769805424735,0.19522341,2671.7,2669.7,14.38395399]
[1769805424946,0.0632617,2672.3,2669.7,14.38395399]
[1769805425163,0.2335703,2672.2,2669.7,14.38395399]
[1769805425354,0.2335703,2671.8,2669.7,0.93643432]
[1769805425555,0.48663576,2671.8,2669.7,0.93643432]
[1769805425866,0.1024,2672.2,2669.7,0.93643432]
[1769805426169,2.07073347,2672.5,2669.7,0.93640043]
[1769805426170,0.3359703,2672.0,2669.7,0.93640043]
[1769805426475,0.93566375,2671.9,2669.3,3.7461695]
[1769805426642,0.1024,2671.7,2669.3,3.7461695]
[1769805426854,0.2335703,2671.5,2669.3,3.7461695]
[1769805427247,0.783,2671.6,2669.4,13.50069564]
[1769805427450,0.783,2671.6,2669.6,13.50069564]
[1769805428169,0.82260606,2671.5,2669.2,0.93659114]
[1769805428373,0.82260606,2671.5,2668.8,0.13347538]
[1769805428374,13.97267052,2670.8,2668.8,0.13347538]
[1769805428668,1.19381978,2670.9,2668.8,0.93673877]
[1769805428868,0.93600175,2671.0,2668.8,0.93673877]
[1769805429201,14.10469201,2670.9,2667.6,13.50069564]
[1769805429355,0.3359703,2670.6,2667.6,13.50069564]
[1769805429664,0.2335703,2669.9,2668.1,0.93697999]
[1769805429985,0.1024,2671.2,2668.8,14.43743822]
[1769805430190,0.93583888,2671.4,2669.5,0.0011]
[1769805430489,0.93583888,2671.4,2668.5,3.74700239]
[1769805430490,0.1024,2671.1,2669.3,0.0011]
[1769805430782,0.1024,2670.9,2669.3,0.0011]
[1769805430948,0.1024,2670.9,2668.2,0.93806124]
[1769805431151,0.2335703,2670.2,2668.2,0.93806124]
[1769805431347,0.3359703,2670.7,2668.2,16.25741707]
[1769805432283,13.97267052,2670.7,2668.2,2.75672143]
[1769805432481,0.93607928,2670.8,2668.2,14.43875688]
[1769805432788,0.93594399,2671.1,2668.2,14.43875688]
[1769805432990,1.71992533,2671.2,2668.2,14.43875688]
[1769805433290,13.63670022,2672.0,2668.3,13.50069564]
[1769805433493,5.98643802,2672.1,2668.3,13.50069564]
[1769805433494,13.89450593,2671.7,2668.3,13.50069564]
[1769805433693,1.38945059,2671.6,2668.5,13.50069564]
[1769805434108,0.8864,2671.5,2668.5,13.50069564]
[1769805434592,0.1024,2670.6,2668.6,0.9368208]
[1769805434790,0.1024,2670.9,2668.6,0.9368208]
[1769805434963,0.93590895,2671.2,2668.6,14.43751644]
[1769805435160,0.93590895,2671.2,2668.8,13.50069564]
[1769805435372,1.36516891,2671.3,2668.8,13.50069564]
[1769805436362,1.36516891,2671.3,2669.0,13.50069564]
[1769805437479,0.2335703,2671.2,2669.0,13.50069564]
[1769805437891,1.36516891,2671.3,2669.0,13.50069564]
[1769805438113,0.51085526,2671.2,2669.1,1.52214111]
[1769805438270,0.51085526,2671.2,2669.1,15.02283675]
[1769805438980,0.2335703,2671.0,2669.2,14.43730586]
[1769805439316,0.93594399,2671.1,2669.2,14.43730586]
[1769805439469,2.244,2671.0,2669.2,14.43730586]
[1769805440798,1.446767,2671.2,2669.2,14.43730586]
[1769805441068,0.41200481,2671.1,2669.6,13.50069564]
[1769805441289,1.36516693,2671.3,2669.6,13.50069564]
[1769805441675,1.36516693,2671.3,2669.5,0.93650496]
[1769805441896,2.244,2671.2,2669.5,0.93650496]
[1769805442319,2.244,2671.2,2669.5,14.4372006]
[1769805442525,0.42928108,2671.3,2669.5,14.4372006]
[1769805442678,0.43028108,2671.3,2669.7,13.50069564]
[1769805443074,1.36616891,2671.3,2669.8,0.93639973]
[1769805443815,1.36616891,2671.3,2669.7,0.9364346]
[1769805444112,2.74324493,2671.2,2669.7,0.9364346]
[1769805444413,2.244,2671.2,2669.7,0.9364346]
[1769805444616,2.244,2671.0,2669.5,0.93649639]
[1769805444814,0.1024,2670.9,2669.3,0.0011]
[1769805445015,2.244,2670.6,2669.3,0.0011]
[1769805445180,0.49924493,2670.5,2669.3,0.0011]
[1769805445381,3.18008417,2670.7,2669.3,0.0011]
[1769805445706,0.69244209,2670.6,2669.3,0.0011]
[1769805446108,3.9773208,2671.2,2669.3,0.0011]
[1769805446297,0.2335703,2671.0,2669.3,0.0011]
[1769805446612,0.1024,2670.6,2669.3,0.0011]
[1769805446811,2.4775703,2670.2,2668.3,3.74765964]
[1769805447020,0.2335703,2670.0,2667.9,3.74815354]
[1769805447193,0.1024,2669.5,2667.8,0.93707682]
[1769805447392,2.244,2669.3,2667.8,0.93707682]
[1769805447582,0.23464,2669.4,2667.8,0.93707682]
[1769805447787,0.93629452,2670.1,2667.8,0.93707682]
[1769805448022,0.93627374,2670.2,2667.8,0.93707682]
[1769805448222,0.2335703,2670.1,2667.8,0.93707682]
[1769805448413,0.77068613,2670.1,2667.8,0.93707682]
[1769805448588,2.244,2670.0,2667.8,0.93707682]
[1769805448924,0.24775703,2669.9,2668.0,13.50179564]
[1769805449127,0.93594399,2671.1,2668.2,13.50069564]
[1769805449302,1.21428108,2671.3,2669.0,13.50069564]
[1769805449303,0.43028108,2671.3,2669.0,13.50069564]
[1769805449503,0.43028108,2671.3,2669.2,13.50069564]
[1769805449894,0.43028108,2671.3,2669.4,13.50069564]
[1769805450095,13.63670022,2670.6,2668.2,0.53638391]
[1769805450294,2.0194382,2670.5,2668.1,13.50069564]
[1769805450492,0.2335703,2670.6,2668.1,13.50069564]
[1769805450703,2.244,2670.6,2668.1,13.50069564]
[1769805451103,0.1024,2670.5,2668.3,13.50069564]
[1769805451314,2.244,2670.6,2668.3,13.50069564]
[1769805452028,0.43028108,2671.3,2668.5,13.50069564]
[1769805452232,0.43028108,2671.3,2668.7,13.50069564]
[1769805452532,0.43028108,2671.3,2668.9,13.50069564]
[1769805452701,0.43028108,2671.3,2669.5,13.50069564]
[1769805453130,0.93554884,2672.3,2669.7,13.50069564]
[1769805453293,11.17500228,2672.8,2669.9,13.50069564]
[1769805453495,2.05288392,2672.7,2670.1,13.50069564]
[1769805453732,0.1024,2672.6,2670.1,13.50069564]
[1769805453902,4.1615703,2672.5,2670.1,13.50069564]
[1769805454227,2.3464,2672.4,2670.1,13.50069564]
[1769805454634,2.244,2672.4,2670.1,13.50069564]
[1769805454836,2.244,2672.2,2670.3,13.50069564]
[1769805455130,2.244,2672.1,2669.9,13.50069564]
[1769805455329,2.244,2672.4,2669.9,13.50069564]
[1769805455828,0.001,2672.1,2670.1,13.50069564]
[1769805456410,2.244,2669.7,2668.0,0.0011]
[1769805456732,0.3037085,2669.6,2668.2,0.0632617]
[1769805456961,0.4583495,2670.1,2668.9,0.0632617]
[1769805457112,1.55137356,2670.3,2668.9,0.99995473]
[1769805457315,1.16246316,2670.0,2668.9,0.99995473]
[1769805457516,2.244,2669.9,2668.4,0.93686942]
[1769805457816,3.84729757,2670.5,2668.2,3.81108193]
[1769805457817,23.4750641,2671.4,2669.1,0.0632617]
[1769805458057,0.1024,2671.2,2669.3,0.0632617]
[1769805458274,13.27636962,2671.2,2668.7,1.00001991]
[1769805458536,0.1024,2670.3,2668.5,0.0632617]
[1769805458741,2.3464,2670.1,2668.5,0.0632617]
[1769805459046,2.3464,2670.1,2668.2,0.0632617]
[1769805459047,2.244,2669.9,2668.3,0.93690462]
[1769805459249,1.43732993,2669.8,2668.3,0.93690462]
[1769805459451,1.32763696,2670.2,2668.4,0.0632617]
[1769805459751,0.93629452,2670.1,2668.4,0.0632617]
[1769805459938,13.95568058,2670.0,2668.2,0.93695456]
[1769805460138,1.20416009,2669.9,2668.3,0.0632617]
[1769805460336,13.85328058,2670.0,2668.3,0.0632617]
[1769805460537,0.784,2669.9,2668.3,0.0632617]
[1769805460942,0.67931096,2670.0,2668.8,0.0632617]
[1769805461143,0.784,2670.7,2669.3,0.93657513]
[1769805461927,12.98875285,2671.6,2669.3,0.93657513]
[1769805461928,0.93594503,2671.1,2669.6,0.0632617]
[1769805462128,14.89386003,2671.3,2669.6,0.0632617]
[1769805462472,13.95796962,2671.2,2668.7,3.81037251]
[1769805462631,13.27636962,2671.1,2669.2,0.93658759]
[1769805462957,0.098494,2669.7,2668.5,1.00009336]
[1769805463179,0.098494,2669.7,2668.3,0.0632617]
[1769805463180,0.098494,2669.7,2668.3,0.93692613]
[1769805464551,0.784,2670.7,2668.8,0.0632617]
[1769805464752,0.784,2670.7,2669.0,0.0632617]
[1769805465121,0.93611922,2670.6,2669.1,0.93664531]
[1769805465426,0.54645961,2670.5,2669.4,0.0632617]
[1769805465650,2.49138458,2670.7,2669.1,0.93664531]
[1769805465852,0.44533506,2670.6,2669.1,0.93664531]
[1769805466243,0.784,2670.7,2669.2,0.0632617]
[1769805466551,0.784,2670.8,2669.1,0.93664531]
[1769805466861,2.34203987,2671.0,2669.8,0.0632617]
[1769805466862,1.40603696,2671.0,2669.8,0.0632617]
[1769805467035,1.71993448,2671.2,2669.8,0.0632617]
[1769805467235,0.001,2670.6,2669.9,0.93636465]
[1769805467435,0.001,2670.6,2669.8,0.999655]
[1769805467836,0.001,2670.6,2669.8,0.0632617]
[1769805468037,0.001,2670.6,2669.4,0.0632617]
[1769805468421,0.001,2670.6,2669.7,0.93643318]
[1769805468660,0.001,2670.6,2669.7,0.93641697]
[1769805468959,0.001,2670.6,2669.6,0.0632617]
[1769805469126,0.001,2670.6,2669.4,3.8094163]
[1769805469322,0.001,2670.6,2669.5,0.93650496]
[1769805469548,0.001,2670.6,2669.0,0.0632617]
[1769805469779,0.62278774,2670.5,2669.9,0.0632617]
[1769805469979,0.001,2670.6,2669.9,0.0632617]
[1769805470276,0.001,2670.6,2669.7,0.0632617]
[1769805470574,0.001,2670.6,2670.1,0.0632617]
[1769805470771,0.001,2670.6,2670.3,0.0632617]
[1769805470972,0.001,2670.6,2669.7,0.0632617]
[1769805471155,0.001,2670.6,2669.3,0.93655734]
[1769805471354,0.54293955,2670.5,2669.3,0.93655734]
[1769805471552,0.2335703,2670.4,2668.7,3.81036275]
[1769805471853,0.2335703,2670.4,2668.7,1.00002842]
[1769805471854,0.54293955,2670.3,2668.7,1.00002842]
[1769805472282,0.40822704,2670.3,2668.9,0.93671179]
[1769805472590,0.001,2670.6,2669.7,0.0632617]
[1769805472791,0.001,2670.6,2670.1,0.0632617]
[1769805472950,13.17396962,2672.0,2670.1,0.0632617]
[1769805472951,0.93567489,2671.9,2670.5,0.0632617]
[1769805473152,14.89362403,2672.0,2670.6,0.93611922]
[1769805473354,1.86370167,2671.9,2670.9,0.0632617]
[1769805473547,0.001,2672.1,2670.9,0.0632617]
[1769805473754,0.93662042,2672.1,2670.7,0.0632617]
[1769805473954,0.93660001,2672.1,2670.7,0.0632617]
[1769805474881,0.93660001,2672.1,2670.9,0.0632617]
[1769805475086,0.001,2672.1,2670.9,0.0632617]
[1769805475253,0.001,2672.1,2671.0,0.93597903]
[1769805476064,0.001,2672.1,2671.3,0.0632617]
[1769805476456,0.001,2672.1,2671.3,0.0124617]
[1769805476888,0.001,2672.1,2671.5,0.0632617]
[1769805477402,0.001,2672.1,2671.6,0.93576882]
[1769805477601,6.83568304,2673.3,2671.6,0.93576882]
[1769805477787,1.21319714,2673.3,2672.0,0.0632617]
[1769805478095,1.21319714,2673.3,2671.8,0.0632617]
[1769805478298,13.27636962,2673.2,2671.5,0.99904094]
[1769805478597,13.27636962,2673.2,2671.3,0.9483109]
[1769805478598,0.2335703,2672.9,2671.3,0.9483109]
[1769805478800,0.54279684,2672.8,2671.3,0.9483109]
[1769805479014,0.95102388,2672.8,2671.3,0.94831054]
[1769805479194,0.001,2671.9,2671.3,0.93587335]
[1769805479492,0.001,2671.9,2671.3,0.0632617]
[1769805479995,0.001,2671.9,2671.5,0.0632617]
[1769805480701,0.784,2672.7,2671.5,0.0632617]
[1769805480904,1.21317582,2673.3,2672.1,0.0632617]
[1769805481077,1.99717582,2673.3,2671.9,0.0632617]
[1769805481280,0.93524372,2673.1,2671.9,0.99891469]
[1769805481473,0.57378708,2673.2,2672.1,0.0632617]
[1769805481675,1.06200128,2673.3,2672.5,0.0632617]
[1769805481891,0.27800128,2673.3,2672.5,0.0632617]
[1769805482410,15.41796962,2673.0,2671.0,0.0632617]
[1769805482612,15.41796962,2673.0,2670.8,0.93602827]
[1769805482613,0.63522061,2671.9,2670.8,0.93602827]
[1769805482810,0.784,2671.8,2670.6,0.93611922]
[1769805483012,1.19222704,2671.8,2670.4,0.9361645]
[1769805483233,0.93576882,2671.6,2670.0,0.0632617]
[1769805483414,0.50104516,2671.7,2670.6,0.0632617]
[1769805483730,0.9354369,2672.6,2671.3,0.0632617]
[1769805483892,0.9354369,2672.6,2671.1,0.0632617]
[1769805483893,0.41498684,2672.5,2671.1,0.0632617]
[1769805484086,0.41498684,2672.5,2671.3,0.0632617]
[1769805484690,0.41498684,2672.5,2671.6,0.0632617]
[1769805484891,0.93538421,2672.7,2671.6,0.0632617]
[1769805485100,0.93538421,2672.7,2671.2,0.0616617]
[1769805485306,1.71938421,2672.7,2671.7,0.0632617]
[1769805485501,1.71564421,2672.7,2671.4,0.0632617]
[1769805486003,1.71564421,2672.7,2671.8,0.0632617]
[1769805486210,0.54570591,2672.6,2671.8,0.0632617]
[1769805487060,2.78970591,2672.6,2671.6,0.0632617]
[1769805487231,3.24976628,2672.6,2671.4,0.0632617]
[1769805487414,3.63951406,2672.5,2671.0,0.99922902]
[1769805487619,0.2335703,2671.9,2670.7,0.0632617]
[1769805487834,2.244,2671.5,2669.9,0.0632617]
[1769805488013,2.244,2671.3,2669.6,0.93644732]
[1769805488227,0.784,2671.2,2670.0,0.0632617]
[1769805488630,0.2335703,2671.8,2670.0,0.0632617]
[1769805488631,0.3359703,2672.0,2670.4,0.0632617]
[1769805488824,0.3359703,2671.8,2670.4,0.0632617]
[1769805489217,0.1024,2671.8,2670.4,0.0632617]
[1769805489412,0.9357338,2671.7,2670.4,0.0632617]
[1769805489719,0.9357338,2671.7,2670.4,0.93616763]
[1769805489918,0.9357338,2671.7,2670.5,0.0632617]
[1769805490116,0.93559372,2672.1,2671.1,0.0632617]
[1769805490344,0.93559372,2672.1,2670.9,0.0632617]
[1769805490345,1.71959372,2672.1,2670.9,0.0632617]
[1769805490654,1.71959372,2672.1,2670.7,0.0632617]
[1769805490842,1.71959372,2672.1,2671.1,0.0632617]
[1769805491031,2.16296956,2672.1,2671.1,0.0632617]
[1769805491230,0.81493445,2672.0,2671.1,0.0632617]
[1769805491555,0.93566375,2671.9,2671.1,0.0632617]
[1769805491766,2.244,2671.8,2670.7,0.0632617]
[1769805491917,2.244,2671.8,2670.3,0.0632617]
[1769805491918,2.4775703,2671.7,2670.3,0.0632617]
[1769805492252,0.49120917,2671.6,2670.3,0.0632617]
[1769805492563,0.29687795,2671.5,2670.3,0.0632617]
[1769805492936,0.45658522,2671.4,2670.3,0.0632617]
[1769805493141,0.45658522,2671.4,2670.0,0.93632594]
[1769805493524,0.93587391,2671.3,2669.6,3.74574247]
[1769805493724,1.39245913,2671.3,2669.6,3.74574247]
[1769805493926,0.51359548,2671.2,2669.7,0.46822124]
[1769805494231,0.51359548,2671.2,2669.7,13.85275503]
[1769805494443,0.93566375,2671.9,2669.7,13.85275503]
[1769805495670,1.75058671,2672.0,2669.9,13.38453379]
[1769805495868,0.93565226,2672.0,2669.9,13.38453379]
[1769805496485,0.93565226,2672.0,2671.5,0.0632617]
[1769805496652,0.93565226,2672.0,2671.5,0.04680631]
[1769805496853,0.93651958,2672.4,2671.9,0.0632617]
[1769805497077,0.93651958,2672.4,2671.5,0.04680631]
[1769805497278,0.46784744,2672.3,2671.5,0.04680631]
[1769805497481,0.92443266,2672.3,2671.1,0.0632617]
[1769805497804,0.93555871,2672.2,2671.7,0.0632617]
[1769805497950,1.03764372,2673.2,2672.3,0.0632617]
[1769805498157,4.52507911,2673.1,2671.9,0.0632617]
[1769805498396,0.54603228,2673.0,2672.1,0.0632617]
[1769805498759,0.54603228,2673.0,2671.9,0.0632617]
[1769805498760,1.33003228,2673.0,2671.9,0.0632617]
[1769805498964,0.45658522,2672.9,2671.3,0.0632617]
[1769805499651,0.93534869,2672.8,2671.5,0.06736275]